Workbook

Sheet Параметры
B2: Расчетные параметры
D4: Дата выдачи кредита (займа) | F4: 2017-10-01
D7: Размер процентной ставки | F7: 0.08
D9: Срок кредита (займа) (мес.) | F9: 13
C12: Кредит (заем) за счет средств ЦЖЗ
D14: Максимальный размер кредита (займа), руб. | F14: 270000
D16: Размер кредита (займа), руб. | F16: 270000
D18: Фактический срок кредита (займа) (мес.) | F18: 13
D20: Максимальный срок кредита (займа) (мес.) | F20: 13
C23: Дополнительный кредит (заем)
D25: Максимальная cумма допкредита (допзайма), руб | F25: 67254
D27: Сумма допкредита (допзайма), руб | F27: 67254
D29: Максимальный ежемесячный платеж по допкредиту (допзайму), руб * | F29: 5419.5
D31: Ежемесячный платеж по допкредиту (допзайму), руб * | F31: 5419.5
D32: * не более 25% от 1/12 накопительного взноса на текущий год
D34: Cрок допкредита (допзайма) (мес.) | F34: 13
I38: 2
C43: Расчет графика платежей
D53: Ќомер периода: 13, остаток задолженности: 0 руб.

Sheet Печать
A1: ГРАФИК ЕЖЕМЕСЯЧНЫХ ПЛАТЕЖЕЙ
D3: ФИО заемщика
D5: Сумма кредита (ЦЖЗ) | H5: =Параметры!F16 -> 270000 | J5: руб.
D6: Сумма допкредита (допзайма) | H6: =Параметры!F27 -> 67254 | J6: руб.
D7: Дата выдачи кредита (займа) | H7: =Параметры!F4 -> 2017-10-01
D8: Процентная ставка | H8: =Справочник!E17 -> 0.08 | J8: годовых
D9: Срок кредита (займа) | H9: =Параметры!F9 -> 13 | J9: мес.
D10: Расчетная дата | H10: ???
D12: Ежемесячный платеж за счет собственных средств | H12: =Параметры!F31 -> 5419.5 | J12: руб.
A15: Платеж-ный период | B15: Последняя дата платежа | C15: Кол-во дней в платеж-ном периоде | D15: Процентная ставка | E15: ООД на начало периода | F15: Ежемесяч-ный платеж | G15: Платеж за счет средств ЦЖЗ | H15: Платеж за счет собственных средств | I15: Начисленные % по основному долгу | J15: Погашение % | K15: Погашениеосновного долга | L15: ООД на конец периода | M15: Плановая накопленная процентная задолженность на начало периода | N15: Начисленные проценты по рассрочке | O15: Плановая процентная задолженность (Рост (+) / погашение (-)) | P15: Плановая накопленная процентная задолженность на конец периода | Q15: Фактические платежи ЦЖЗ | R15: Частичное-досрочное погашение за счет средств ЦЖЗ | S15: Фактические платежи за счет собственных средств | T15: Частичное-досрочное погашение за счетсобственных средств
A16: 1 | B16: 2 | C16: 3 | D16: 4 | E16: 5 | F16: 6 | G16: 7 | H16: 8 | I16: 9 | J16: 10 | K16: 11 | L16: 12 | M16: 13 | N16: 14 | O16: 15 | P16: 16 | Q16: 17 | R16: 18 | S16: 19 | T16: 20
A17: 1 | B17: 2017-10-31 | C17: 30 | D17: 0.08 | E17: 337254 | F17: 0 | G17: 0 | H17: 0 | I17: 2217.56 | J17: 0 | K17: 0 | L17: 337254 | M17: 0 | N17: 0 | O17: 0 | P17: 0
A18: 2 | B18: 2017-11-30 | C18: 30 | D18: 0.08 | E18: 337254 | F18: 54195 | G18: 43356 | H18: 10839 | I18: 2217.56 | J18: 4435.12 | K18: 49759.88 | L18: 287494.12 | M18: 0 | N18: 0 | O18: 0 | P18: 0
A19: 3 | B19: 2017-12-31 | C19: 31 | D19: 0.08 | E19: 287494.12 | F19: 27097.5 | G19: 21678 | H19: 5419.5 | I19: 1953.38 | J19: 1953.38 | K19: 25144.12 | L19: 262350 | M19: 0 | N19: 0 | O19: 0 | P19: 0
A20: 4 | B20: 2018-01-31 | C20: 31 | D20: 0.08 | E20: 262350 | F20: 27097.5 | G20: 21678 | H20: 5419.5 | I20: 1782.54 | J20: 1782.54 | K20: 25314.96 | L20: 237035.04 | M20: 0 | N20: 0 | O20: 0 | P20: 0
A21: 5 | B21: 2018-02-28 | C21: 28 | D21: 0.08 | E21: 237035.04 | F21: 27097.5 | G21: 21678 | H21: 5419.5 | I21: 1454.68 | J21: 1454.68 | K21: 25642.82 | L21: 211392.22 | M21: 0 | N21: 0 | O21: 0 | P21: 0
A22: 6 | B22: 2018-03-31 | C22: 31 | D22: 0.08 | E22: 211392.22 | F22: 27097.5 | G22: 21678 | H22: 5419.5 | I22: 1436.31 | J22: 1436.31 | K22: 25661.19 | L22: 185731.03 | M22: 0 | N22: 0 | O22: 0 | P22: 0
A23: 7 | B23: 2018-04-30 | C23: 30 | D23: 0.08 | E23: 185731.03 | F23: 27097.5 | G23: 21678 | H23: 5419.5 | I23: 1221.24 | J23: 1221.24 | K23: 25876.26 | L23: 159854.77 | M23: 0 | N23: 0 | O23: 0 | P23: 0
A24: 8 | B24: 2018-05-31 | C24: 31 | D24: 0.08 | E24: 159854.77 | F24: 27097.5 | G24: 21678 | H24: 5419.5 | I24: 1086.14 | J24: 1086.14 | K24: 26011.36 | L24: 133843.41 | M24: 0 | N24: 0 | O24: 0 | P24: 0
A25: 9 | B25: 2018-06-30 | C25: 30 | D25: 0.08 | E25: 133843.41 | F25: 27097.5 | G25: 21678 | H25: 5419.5 | I25: 880.07 | J25: 880.07 | K25: 26217.43 | L25: 107625.98 | M25: 0 | N25: 0 | O25: 0 | P25: 0
A26: 10 | B26: 2018-07-31 | C26: 31 | D26: 0.08 | E26: 107625.98 | F26: 27097.5 | G26: 21678 | H26: 5419.5 | I26: 731.26 | J26: 731.26 | K26: 26366.24 | L26: 81259.74 | M26: 0 | N26: 0 | O26: 0 | P26: 0
A27: 11 | B27: 2018-08-31 | C27: 31 | D27: 0.08 | E27: 81259.74 | F27: 27097.5 | G27: 21678 | H27: 5419.5 | I27: 552.13 | J27: 552.13 | K27: 26545.37 | L27: 54714.37 | M27: 0 | N27: 0 | O27: 0 | P27: 0
A28: 12 | B28: 2018-09-30 | C28: 30 | D28: 0.08 | E28: 54714.37 | F28: 27097.5 | G28: 21678 | H28: 5419.5 | I28: 359.76 | J28: 359.76 | K28: 26737.74 | L28: 27976.63 | M28: 0 | N28: 0 | O28: 0 | P28: 0
A29: 13 | B29: 2018-10-31 | C29: 31 | D29: 0.08 | E29: 27976.63 | F29: 28166.72 | G29: 22747.9 | H29: 5418.82 | I29: 190.09 | J29: 190.09 | K29: 27976.63 | L29: 0 | M29: 0 | N29: 0 | O29: 0 | P29: 0

Sheet Расчет
A1: Сводный информационный расчет | N1: Кредит (займ) по ЦЖЗ | Y1: Дополнительный кредит
A2: Номер платежного периода | B2: Платежный период | C2: ООД на начало периода | D2: Платеж по кредиту | E2: Начислен-ные проценты по основному долгу | F2: Погашение % | G2: Погашение основного долга | H2: ООД на конец периода | I2: Плановая накопленная процентная задолженность на начало периода | J2: Начисленные проценты по рассрочке | K2: Уплаченные проценты по накоплен-ной процентной задолжен-ности | L2: Рост (+) / погашение (-) задолженности | M2: Плановая накопленная процентная задолженность на конец периода | N2: ООД на начало периода | O2: Платеж по кредиту | P2: Начисленные % по основному долгу | Q2: Погашение % | R2: Погашениеосновного долга | S2: ООД на конец периода | T2: Плановая накопленная процентная задолженность на начало периода | U2: Начисленные проценты по рассрочке | V2: Уплаченные проценты по накоплен-ной процентной задолжен-ности | W2: Рост (+) / погашение (-) задолженности | X2: Плановая накопленная процентная задолженность на конец периода | Y2: ООД на начало периода | Z2: Платеж по кредиту | AA2: Начисленные % по основному долгу | AB2: Погашение % | AC2: Погашениеосновного долга | AD2: ООД на конец периода | AE2: Плановая накопленная процентная задолженность на начало периода | AF2: Начисленные проценты по рассрочке | AG2: Уплаченные проценты по накоплен-ной процентной задолжен-ности | AH2: Рост (+) / погашение (-) задолженности | AI2: Плановая накопленная процентная задолженность на конец периода | AJ2: Кол-во дней в платеж-ном периоде
A3: 1 | B3: 2 | C3: 3 | D3: 4 | E3: 5 | F3: 6 | G3: 7 | H3: 8 | I3: 9 | J3: 10 | K3: 11 | L3: 12 | M3: 13 | N3: 14 | O3: 15 | P3: 16 | Q3: 17 | R3: 18 | S3: 19 | T3: 20 | U3: 21 | V3: 22 | W3: 23 | X3: 24 | Y3: 25 | Z3: 26 | AA3: 27 | AB3: 28 | AC3: 29 | AD3: 30 | AE3: 31 | AF3: 32 | AG3: 33 | AH3: 34 | AI3: 35 | AJ3: 36
A4: 1 | B4: 2017-10-31 | C4: 337254 | D4: 0 | E4: 2217.56 | F4: 0 | G4: 0 | H4: 337254 | I4: 0 | J4: 0 | K4: 0 | L4: 0 | M4: 0 | N4: 270000 | O4: 0 | P4: 1775.34 | S4: 270000 | T4: 0 | U4: 0 | X4: 0 | Y4: 67254 | Z4: 0 | AA4: 442.22 | AD4: 67254 | AE4: 0 | AF4: 0 | AI4: 0 | AJ4: 30 | AO4: =IF(L4>0,0,-L4) -> 0
A5: 2 | B5: 2017-11-30 | C5: 337254 | D5: 54195 | E5: 2217.56 | F5: 4435.12 | G5: 49759.88 | H5: 287494.12 | I5: 0 | J5: 0 | K5: 0 | L5: 0 | M5: 0 | N5: 270000 | O5: 43356 | P5: 1775.34 | Q5: 3550.68 | R5: 39805.32 | S5: 230194.68 | T5: 0 | U5: 0 | V5: 0 | W5: 0 | X5: 0 | Y5: 67254 | Z5: 10839 | AA5: 442.22 | AB5: 884.44 | AC5: 9954.56 | AD5: 57299.44 | AE5: 0 | AF5: 0 | AG5: 0 | AH5: 0 | AI5: 0 | AJ5: 30 | AO5: =IF(L5>0,0,-L5) -> 0
A6: 3 | B6: 2017-12-31 | C6: 287494.12 | D6: 27097.5 | E6: 1953.38 | F6: 1953.38 | G6: 25144.12 | H6: 262350 | I6: 0 | J6: 0 | K6: 0 | L6: 0 | M6: 0 | N6: 230194.68 | O6: 21678 | P6: 1564.06 | Q6: 1564.06 | R6: 20113.94 | S6: 210080.74 | T6: 0 | U6: 0 | V6: 0 | W6: 0 | X6: 0 | Y6: 57299.44 | Z6: 5419.5 | AA6: 389.32 | AB6: 389.32 | AC6: 5030.18 | AD6: 52269.26 | AE6: 0 | AF6: 0 | AG6: 0 | AH6: 0 | AI6: 0 | AJ6: 31 | AO6: =IF(L6>0,0,-L6) -> 0
A7: 4 | B7: 2018-01-31 | C7: 262350 | D7: 27097.5 | E7: 1782.54 | F7: 1782.54 | G7: 25314.96 | H7: 237035.04 | I7: 0 | J7: 0 | K7: 0 | L7: 0 | M7: 0 | N7: 210080.74 | O7: 21678 | P7: 1427.4 | Q7: 1427.4 | R7: 20250.6 | S7: 189830.14 | T7: 0 | U7: 0 | V7: 0 | W7: 0 | X7: 0 | Y7: 52269.26 | Z7: 5419.5 | AA7: 355.14 | AB7: 355.14 | AC7: 5064.36 | AD7: 47204.9 | AE7: 0 | AF7: 0 | AG7: 0 | AH7: 0 | AI7: 0 | AJ7: 31 | AO7: =IF(L7>0,0,-L7) -> 0
A8: 5 | B8: 2018-02-28 | C8: 237035.04 | D8: 27097.5 | E8: 1454.68 | F8: 1454.68 | G8: 25642.82 | H8: 211392.22 | I8: 0 | J8: 0 | K8: 0 | L8: 0 | M8: 0 | N8: 189830.14 | O8: 21678 | P8: 1164.98 | Q8: 1164.98 | R8: 20513.02 | S8: 169317.12 | T8: 0 | U8: 0 | V8: 0 | W8: 0 | X8: 0 | Y8: 47204.9 | Z8: 5419.5 | AA8: 289.7 | AB8: 289.7 | AC8: 5129.8 | AD8: 42075.1 | AE8: 0 | AF8: 0 | AG8: 0 | AH8: 0 | AI8: 0 | AJ8: 28 | AO8: =IF(L8>0,0,-L8) -> 0
A9: 6 | B9: 2018-03-31 | C9: 211392.22 | D9: 27097.5 | E9: 1436.31 | F9: 1436.31 | G9: 25661.19 | H9: 185731.03 | I9: 0 | J9: 0 | K9: 0 | L9: 0 | M9: 0 | N9: 169317.12 | O9: 21678 | P9: 1150.43 | Q9: 1150.43 | R9: 20527.57 | S9: 148789.55 | T9: 0 | U9: 0 | V9: 0 | W9: 0 | X9: 0 | Y9: 42075.1 | Z9: 5419.5 | AA9: 285.88 | AB9: 285.88 | AC9: 5133.62 | AD9: 36941.48 | AE9: 0 | AF9: 0 | AG9: 0 | AH9: 0 | AI9: 0 | AJ9: 31 | AO9: =IF(L9>0,0,-L9) -> 0
A10: 7 | B10: 2018-04-30 | C10: 185731.03 | D10: 27097.5 | E10: 1221.24 | F10: 1221.24 | G10: 25876.26 | H10: 159854.77 | I10: 0 | J10: 0 | K10: 0 | L10: 0 | M10: 0 | N10: 148789.55 | O10: 21678 | P10: 978.34 | Q10: 978.34 | R10: 20699.66 | S10: 128089.89 | T10: 0 | U10: 0 | V10: 0 | W10: 0 | X10: 0 | Y10: 36941.48 | Z10: 5419.5 | AA10: 242.9 | AB10: 242.9 | AC10: 5176.6 | AD10: 31764.88 | AE10: 0 | AF10: 0 | AG10: 0 | AH10: 0 | AI10: 0 | AJ10: 30 | AO10: 0
A11: 8 | B11: 2018-05-31 | C11: 159854.77 | D11: 27097.5 | E11: 1086.14 | F11: 1086.14 | G11: 26011.36 | H11: 133843.41 | I11: 0 | J11: 0 | K11: 0 | L11: 0 | M11: 0 | N11: 128089.89 | O11: 21678 | P11: 870.31 | Q11: 870.31 | R11: 20807.69 | S11: 107282.2 | T11: 0 | U11: 0 | V11: 0 | W11: 0 | X11: 0 | Y11: 31764.88 | Z11: 5419.5 | AA11: 215.83 | AB11: 215.83 | AC11: 5203.67 | AD11: 26561.21 | AE11: 0 | AF11: 0 | AG11: 0 | AH11: 0 | AI11: 0 | AJ11: 31 | AO11: 0
A12: 9 | B12: 2018-06-30 | C12: 133843.41 | D12: 27097.5 | E12: 880.07 | F12: 880.07 | G12: 26217.43 | H12: 107625.98 | I12: 0 | J12: 0 | K12: 0 | L12: 0 | M12: 0 | N12: 107282.2 | O12: 21678 | P12: 705.42 | Q12: 705.42 | R12: 20972.58 | S12: 86309.62 | T12: 0 | U12: 0 | V12: 0 | W12: 0 | X12: 0 | Y12: 26561.21 | Z12: 5419.5 | AA12: 174.65 | AB12: 174.65 | AC12: 5244.85 | AD12: 21316.36 | AE12: 0 | AF12: 0 | AG12: 0 | AH12: 0 | AI12: 0 | AJ12: 30 | AO12: 0
A13: 10 | B13: 2018-07-31 | C13: 107625.98 | D13: 27097.5 | E13: 731.26 | F13: 731.26 | G13: 26366.24 | H13: 81259.74 | I13: 0 | J13: 0 | K13: 0 | L13: 0 | M13: 0 | N13: 86309.62 | O13: 21678 | P13: 586.43 | Q13: 586.43 | R13: 21091.57 | S13: 65218.05 | T13: 0 | U13: 0 | V13: 0 | W13: 0 | X13: 0 | Y13: 21316.36 | Z13: 5419.5 | AA13: 144.83 | AB13: 144.83 | AC13: 5274.67 | AD13: 16041.69 | AE13: 0 | AF13: 0 | AG13: 0 | AH13: 0 | AI13: 0 | AJ13: 31 | AO13: 0
A14: 11 | B14: 2018-08-31 | C14: 81259.74 | D14: 27097.5 | E14: 552.13 | F14: 552.13 | G14: 26545.37 | H14: 54714.37 | I14: 0 | J14: 0 | K14: 0 | L14: 0 | M14: 0 | N14: 65218.05 | O14: 21678 | P14: 443.13 | Q14: 443.13 | R14: 21234.87 | S14: 43983.18 | T14: 0 | U14: 0 | V14: 0 | W14: 0 | X14: 0 | Y14: 16041.69 | Z14: 5419.5 | AA14: 109 | AB14: 109 | AC14: 5310.5 | AD14: 10731.19 | AE14: 0 | AF14: 0 | AG14: 0 | AH14: 0 | AI14: 0 | AJ14: 31 | AO14: 0
A15: 12 | B15: 2018-09-30 | C15: 54714.37 | D15: 27097.5 | E15: 359.76 | F15: 359.76 | G15: 26737.74 | H15: 27976.63 | I15: 0 | J15: 0 | K15: 0 | L15: 0 | M15: 0 | N15: 43983.18 | O15: 21678 | P15: 289.2 | Q15: 289.2 | R15: 21388.8 | S15: 22594.38 | T15: 0 | U15: 0 | V15: 0 | W15: 0 | X15: 0 | Y15: 10731.19 | Z15: 5419.5 | AA15: 70.56 | AB15: 70.56 | AC15: 5348.94 | AD15: 5382.25 | AE15: 0 | AF15: 0 | AG15: 0 | AH15: 0 | AI15: 0 | AJ15: 30 | AO15: =IF(L15>0,0,-L15) -> 0
A16: 13 | B16: 2018-10-31 | C16: 27976.63 | D16: 28166.72 | E16: 190.09 | F16: 190.09 | G16: 27976.63 | H16: 0 | I16: 0 | J16: 0 | K16: 0 | L16: 0 | M16: 0 | N16: 22594.38 | O16: 22747.9 | P16: 153.52 | Q16: 153.52 | R16: 22594.38 | S16: 0 | T16: 0 | U16: 0 | V16: 0 | W16: 0 | X16: 0 | Y16: 5382.25 | Z16: 5418.82 | AA16: 36.57 | AB16: 36.57 | AC16: 5382.25 | AD16: 0 | AE16: 0 | AF16: 0 | AG16: 0 | AH16: 0 | AI16: 0 | AJ16: 31 | AO16: 0
AO17: 0
AO18: 0
AO19: 0
AO20: 0
AO21: 0
AO22: 0
AO23: 0
AO24: 0
AO25: 0
AO26: 0
AO27: =IF(L27>0,0,-L27) -> 0
AO28: 0
AO29: 0
AO30: 0
AO31: 0
AO32: 0
AO33: 0
AO34: 0
AO35: 0
AO36: 0
AO37: 0
AO38: 0
AO39: 0
AO40: 0
AO41: 0
AO42: 0
AO43: 0
AO44: 0
AO45: 0
AO46: 0
AO47: 0
AO48: 0
AO49: 0
AO50: 0
AO51: =IF(L51>0,0,-L51) -> 0
AO52: 0
AO53: 0
AO54: 0
AO55: 0
AO56: 0
AO57: 0
AO58: 0
AO59: 0
AO60: 0
AO61: 0
AO62: 0
AO63: 0
AO64: 0
AO65: 0
AO66: 0
AO67: 0
AO68: 0
AO69: 0
AO70: 0
AO71: 0
AO72: 0
AO73: 0
AO74: 0
AO75: 0
AO76: 0
AO77: 0
AO78: 0
AO79: 0
AO80: 0
AO81: 0
AO82: 0
AO83: 0
AO84: 0
AO85: 0
AO86: 0
AO87: 0
AO88: 0
AO89: 0
AO90: 0
AO91: 0
AO92: 0
AO93: 0
AO94: 0
AO95: 0
AO96: 0
AO97: 0
AO98: 0
AO99: =IF(L99>0,0,-L99) -> 0
AO100: 0
AO101: 0
AO102: 0
AO103: 0
AO104: 0
AO105: 0
AO106: 0
AO107: 0
AO108: 0
AO109: 0
AO110: 0
AO111: 0
AO112: 0
AO113: 0
AO114: 0
AO115: 0
AO116: 0
AO117: 0
AO118: 0
AO119: 0
AO120: 0
AO121: 0
AO122: 0
AO123: 0
AO124: 0
AO125: 0
AO126: 0
AO127: 0
AO128: 0
AO129: 0
AO130: 0
AO131: 0
AO132: 0
AO133: 0
AO134: 0
AO135: 0
AO136: 0
AO137: 0
AO138: 0
AO139: 0
AO140: 0
AO141: 0
AO142: 0
AO143: 0
AO144: 0
AO145: 0
AO146: 0
AO147: =IF(L147>0,0,-L147) -> 0
AO148: 0
AO149: 0
AO150: 0
AO151: 0
AO152: 0
AO153: 0
AO154: 0
AO155: 0
AO156: 0
AO157: 0
AO158: 0
AO159: 0
AO160: 0
AO161: 0
AO162: 0
AO163: 0
AO164: 0
AO165: 0
AO166: 0
AO167: 0
AO168: 0
AO169: 0
AO170: 0
AO171: 0
AO172: 0
AO173: 0
AO174: 0
AO175: 0
AO176: 0
AO177: 0
AO178: 0
AO179: 0
AO180: 0
AO181: 0
AO182: 0
AO183: 0
AO184: 0
AO185: 0
AO186: 0
AO187: 0
AO188: 0
AO189: 0
AO190: 0
AO191: 0
AO192: 0
AO193: 0
AO194: 0
AO195: 0
AO196: 0
AO197: 0
AO198: 0
AO199: 0
AO200: 0
... 204 more rows

Sheet Инструкция пользователя

Sheet Графики (hidden)

Sheet ШаблонПечати (hidden)
A19: 0 | B19: 00:00:00 | C19: 0 | D19: 0 | E19: 9999999.99 | F19: 0 | G19: 0 | H19: 0 | I19: 0 | J19: 9320 | K19: 0 | L19: 0 | M19: 0 | N19: 0 | O19: 0 | P19: 0
A21: 0 | B21: 00:00:00 | C21: 0 | D21: 0 | E21: 0 | F21: 0 | G21: 0 | H21: 0 | I21: 0 | J21: 0 | K21: 0 | L21: 0 | M21: 0 | N21: 0 | O21: 0 | P21: 0
A23: 0 | B23: 00:00:00 | C23: 0 | D23: 0 | E23: 0 | F23: 0 | G23: 0 | H23: 0 | I23: 0 | J23: 0 | K23: 0 | L23: 0 | M23: 0 | N23: 0 | O23: 0 | P23: 0
A25: 0 | B25: 00:00:00 | C25: 0 | D25: 0 | E25: 0 | F25: 0 | G25: 0 | H25: 0 | I25: 0 | J25: 0 | K25: 0 | L25: 0 | M25: 0 | N25: 0 | O25: 0 | P25: 0

Sheet Справочник (hidden)
C1: Верхний предел % ставки | D1: 0.11 | E1: Максимальный срок | F1: 240
C2: Коэффициент снижения для максимальной суммы растущего платежа | D2: 1 | E2: Коэффициент снижения для растущего платежа | F2: =G2*(((MaxPeriods)/(240+MaxPeriods))) -> 0.005138339921 | G2: 0.1 | H2: =G2*(MaxPeriods/240) -> 0.005416666667
A3: 1 | B3: 2 | C3: 3 | D3: 4 | E3: 5 | F3: 6 | G3: 7
C4: Дата | D4: Уровень инфляции | E4: Процентная ставка | F4: Субсидия | G4: с Индексацией | H4: Коэффициент
C5: 2017-01-01 | D5: 0 | E5: 0.08 | F5: 21678 | G5: =F5+(I5-F5)*F2 -> 21678 | H5: =F$2 -> 0.005138339921 | I5: 21678 | J5: =G5/I5 -> 1
C6: 2017-02-01 | D6: 0 | E6: 0.08 | F6: 21678 | G6: =IF(I5=I6,G5,G5+(I6-G5)*F$2) -> 21678 | H6: =F$2 -> 0.005138339921 | I6: 21678 | J6: 1
C7: 2017-03-01 | D7: 0 | E7: 0.08 | F7: 21678 | G7: =IF(I6=I7,G6,G6+(I7-G6)*F$2) -> 21678 | H7: 0.005138339921 | I7: 21678 | J7: 1
C8: 2017-04-01 | D8: 0 | E8: 0.08 | F8: 21678 | G8: 21678 | H8: 0.005138339921 | I8: 21678 | J8: 1
C9: 2017-05-01 | D9: 0 | E9: 0.08 | F9: 21678 | G9: 21678 | H9: 0.005138339921 | I9: 21678 | J9: 1
C10: 2017-06-01 | D10: 0 | E10: 0.08 | F10: 21678 | G10: 21678 | H10: 0.005138339921 | I10: 21678 | J10: 1
C11: 2017-07-01 | D11: 0 | E11: 0.08 | F11: 21678 | G11: 21678 | H11: 0.005138339921 | I11: 21678 | J11: 1
C12: 2017-08-01 | D12: 0 | E12: 0.08 | F12: 21678 | G12: 21678 | H12: 0.005138339921 | I12: 21678 | J12: 1
C13: 2017-09-01 | D13: 0 | E13: 0.08 | F13: 21678 | G13: 21678 | H13: 0.005138339921 | I13: 21678 | J13: 1
C14: 2017-10-01 | D14: 0 | E14: 0.08 | F14: 21678 | G14: 21678 | H14: 0.005138339921 | I14: 21678 | J14: 1
C15: 2017-11-01 | D15: 0 | E15: 0.08 | F15: 21678 | G15: 21678 | H15: 0.005138339921 | I15: 21678 | J15: 1
C16: 2017-12-01 | D16: 0 | E16: 0.08 | F16: 21678 | G16: 21678 | H16: 0.005138339921 | I16: 21678 | J16: 1
C17: 2018-01-01 | D17: 0 | E17: 0.08 | F17: 21678 | G17: 21683.79605 | H17: 0.005138339921 | I17: 22806 | J17: =G17/I17 -> 0.9507934775
C18: 2018-02-01 | D18: 0 | E18: 0.08 | F18: 21678 | G18: 21683.79605 | H18: 0.005138339921 | I18: 22806 | J18: =G18/I18 -> 0.9507934775
C19: 2018-03-01 | D19: 0 | E19: 0.08 | F19: 21678 | G19: 21683.79605 | H19: 0.005138339921 | I19: 22806 | J19: 0.9507934775
C20: 2018-04-01 | D20: 0 | E20: 0.08 | F20: 21678 | G20: 21683.79605 | H20: 0.005138339921 | I20: 22806 | J20: 0.9507934775
C21: 2018-05-01 | D21: 0 | E21: 0.08 | F21: 21678 | G21: 21683.79605 | H21: 0.005138339921 | I21: 22806 | J21: 0.9507934775
C22: 2018-06-01 | D22: 0 | E22: 0.08 | F22: 21678 | G22: 21683.79605 | H22: 0.005138339921 | I22: 22806 | J22: 0.9507934775
C23: 2018-07-01 | D23: 0 | E23: 0.08 | F23: 21678 | G23: 21683.79605 | H23: 0.005138339921 | I23: 22806 | J23: 0.9507934775
C24: 2018-08-01 | D24: 0 | E24: 0.08 | F24: 21678 | G24: 21683.79605 | H24: 0.005138339921 | I24: 22806 | J24: 0.9507934775
C25: 2018-09-01 | D25: 0 | E25: 0.08 | F25: 21678 | G25: 21683.79605 | H25: 0.005138339921 | I25: 22806 | J25: 0.9507934775
C26: 2018-10-01 | D26: 0 | E26: 0.08 | F26: 21678 | G26: 21683.79605 | H26: 0.005138339921 | I26: 22806 | J26: 0.9507934775
C27: 2018-11-01 | D27: 0 | E27: 0.08 | F27: 21678 | G27: 21683.79605 | H27: 0.005138339921 | I27: 22806 | J27: 0.9507934775
C28: 2018-12-01 | D28: 0 | E28: 0.08 | F28: 21678 | G28: 21683.79605 | H28: 0.005138339921 | I28: 22806 | J28: 0.9507934775
C29: 2019-01-01 | D29: 0 | E29: 0.08 | F29: 21678 | G29: 21695.42002 | H29: 0.005138339921 | I29: 23946 | J29: 0.9060143665
C30: 2019-02-01 | D30: 0 | E30: 0.08 | F30: 21678 | G30: 21695.42002 | H30: 0.005138339921 | I30: 23946 | J30: 0.9060143665
C31: 2019-03-01 | D31: 0 | E31: 0.08 | F31: 21678 | G31: 21695.42002 | H31: 0.005138339921 | I31: 23946 | J31: 0.9060143665
C32: 2019-04-01 | D32: 0 | E32: 0.08 | F32: 21678 | G32: 21695.42002 | H32: 0.005138339921 | I32: 23946 | J32: 0.9060143665
C33: 2019-05-01 | D33: 0 | E33: 0.08 | F33: 21678 | G33: 21695.42002 | H33: 0.005138339921 | I33: 23946 | J33: 0.9060143665
C34: 2019-06-01 | D34: 0 | E34: 0.08 | F34: 21678 | G34: 21695.42002 | H34: 0.005138339921 | I34: 23946 | J34: 0.9060143665
C35: 2019-07-01 | D35: 0 | E35: 0.08 | F35: 21678 | G35: 21695.42002 | H35: 0.005138339921 | I35: 23946 | J35: 0.9060143665
C36: 2019-08-01 | D36: 0 | E36: 0.08 | F36: 21678 | G36: 21695.42002 | H36: 0.005138339921 | I36: 23946 | J36: 0.9060143665
C37: 2019-09-01 | D37: 0 | E37: 0.08 | F37: 21678 | G37: 21695.42002 | H37: 0.005138339921 | I37: 23946 | J37: 0.9060143665
C38: 2019-10-01 | D38: 0 | E38: 0.08 | F38: 21678 | G38: 21695.42002 | H38: 0.005138339921 | I38: 23946 | J38: 0.9060143665
C39: 2019-11-01 | D39: 0 | E39: 0.08 | F39: 21678 | G39: 21695.42002 | H39: 0.005138339921 | I39: 23946 | J39: 0.9060143665
C40: 2019-12-01 | D40: 0 | E40: 0.08 | F40: 21678 | G40: 21695.42002 | H40: 0.005138339921 | I40: 23946 | J40: 0.9060143665
C41: 2020-01-01 | D41: 0 | E41: 0.08 | F41: 21678 | G41: 21711.16687 | H41: 0.005138339921 | I41: 24760 | J41: 0.8768645749
C42: 2020-02-01 | D42: 0 | E42: 0.08 | F42: 21678 | G42: 21711.16687 | H42: 0.005138339921 | I42: 24760 | J42: 0.8768645749
C43: 2020-03-01 | D43: 0 | E43: 0.08 | F43: 21678 | G43: 21711.16687 | H43: 0.005138339921 | I43: 24760 | J43: 0.8768645749
C44: 2020-04-01 | D44: 0 | E44: 0.08 | F44: 21678 | G44: 21711.16687 | H44: 0.005138339921 | I44: 24760 | J44: 0.8768645749
C45: 2020-05-01 | D45: 0 | E45: 0.08 | F45: 21678 | G45: 21711.16687 | H45: 0.005138339921 | I45: 24760 | J45: 0.8768645749
C46: 2020-06-01 | D46: 0 | E46: 0.08 | F46: 21678 | G46: 21711.16687 | H46: 0.005138339921 | I46: 24760 | J46: 0.8768645749
C47: 2020-07-01 | D47: 0 | E47: 0.08 | F47: 21678 | G47: 21711.16687 | H47: 0.005138339921 | I47: 24760 | J47: 0.8768645749
C48: 2020-08-01 | D48: 0 | E48: 0.08 | F48: 21678 | G48: 21711.16687 | H48: 0.005138339921 | I48: 24760 | J48: 0.8768645749
C49: 2020-09-01 | D49: 0 | E49: 0.08 | F49: 21678 | G49: 21711.16687 | H49: 0.005138339921 | I49: 24760 | J49: 0.8768645749
C50: 2020-10-01 | D50: 0 | E50: 0.08 | F50: 21678 | G50: 21711.16687 | H50: 0.005138339921 | I50: 24760 | J50: 0.8768645749
C51: 2020-11-01 | D51: 0 | E51: 0.08 | F51: 21678 | G51: 21711.16687 | H51: 0.005138339921 | I51: 24760 | J51: 0.8768645749
C52: 2020-12-01 | D52: 0 | E52: 0.08 | F52: 21678 | G52: 21711.16687 | H52: 0.005138339921 | I52: 24760 | J52: 0.8768645749
C53: 2021-01-01 | D53: 0 | E53: 0.08 | F53: 21678 | G53: 21730.77906 | H53: 0.005138339921 | I53: 25528 | J53: 0.8512527053
C54: 2021-02-01 | D54: 0 | E54: 0.08 | F54: 21678 | G54: 21730.77906 | H54: 0.005138339921 | I54: 25528 | J54: 0.8512527053
C55: 2021-03-01 | D55: 0 | E55: 0.08 | F55: 21678 | G55: 21730.77906 | H55: 0.005138339921 | I55: 25528 | J55: 0.8512527053
C56: 2021-04-01 | D56: 0 | E56: 0.08 | F56: 21678 | G56: 21730.77906 | H56: 0.005138339921 | I56: 25528 | J56: 0.8512527053
C57: 2021-05-01 | D57: 0 | E57: 0.08 | F57: 21678 | G57: 21730.77906 | H57: 0.005138339921 | I57: 25528 | J57: 0.8512527053
C58: 2021-06-01 | D58: 0 | E58: 0.08 | F58: 21678 | G58: 21730.77906 | H58: 0.005138339921 | I58: 25528 | J58: 0.8512527053
C59: 2021-07-01 | D59: 0 | E59: 0.08 | F59: 21678 | G59: 21730.77906 | H59: 0.005138339921 | I59: 25528 | J59: 0.8512527053
C60: 2021-08-01 | D60: 0 | E60: 0.08 | F60: 21678 | G60: 21730.77906 | H60: 0.005138339921 | I60: 25528 | J60: 0.8512527053
C61: 2021-09-01 | D61: 0 | E61: 0.08 | F61: 21678 | G61: 21730.77906 | H61: 0.005138339921 | I61: 25528 | J61: 0.8512527053
C62: 2021-10-01 | D62: 0 | E62: 0.08 | F62: 21678 | G62: 21730.77906 | H62: 0.005138339921 | I62: 25528 | J62: 0.8512527053
C63: 2021-11-01 | D63: 0 | E63: 0.08 | F63: 21678 | G63: 21730.77906 | H63: 0.005138339921 | I63: 25528 | J63: 0.8512527053
C64: 2021-12-01 | D64: 0 | E64: 0.08 | F64: 21678 | G64: 21730.77906 | H64: 0.005138339921 | I64: 25528 | J64: 0.8512527053
C65: 2022-01-01 | D65: 0 | E65: 0.08 | F65: 21678 | G65: 21754.22644 | H65: 0.005138339921 | I65: 26294 | J65: 0.8273456469
C66: 2022-02-01 | D66: 0 | E66: 0.08 | F66: 21678 | G66: 21754.22644 | H66: 0.005138339921 | I66: 26294 | J66: 0.8273456469
C67: 2022-03-01 | D67: 0 | E67: 0.08 | F67: 21678 | G67: 21754.22644 | H67: 0.005138339921 | I67: 26294 | J67: 0.8273456469
C68: 2022-04-01 | D68: 0 | E68: 0.08 | F68: 21678 | G68: 21754.22644 | H68: 0.005138339921 | I68: 26294 | J68: 0.8273456469
C69: 2022-05-01 | D69: 0 | E69: 0.08 | F69: 21678 | G69: 21754.22644 | H69: 0.005138339921 | I69: 26294 | J69: 0.8273456469
C70: 2022-06-01 | D70: 0 | E70: 0.08 | F70: 21678 | G70: 21754.22644 | H70: =F$2 -> 0.005138339921 | I70: 26294 | J70: 0.8273456469
C71: 2022-07-01 | D71: 0 | E71: 0.08 | F71: 21678 | G71: =IF(I70=I71,G70,G70+(I71-G70)*F$2) -> 21754.22644 | H71: 0.005138339921 | I71: 26294 | J71: 0.8273456469
C72: 2022-08-01 | D72: 0 | E72: 0.08 | F72: 21678 | G72: 21754.22644 | H72: 0.005138339921 | I72: 26294 | J72: 0.8273456469
C73: 2022-09-01 | D73: 0 | E73: 0.08 | F73: 21678 | G73: 21754.22644 | H73: 0.005138339921 | I73: 26294 | J73: 0.8273456469
C74: 2022-10-01 | D74: 0 | E74: 0.08 | F74: 21678 | G74: 21754.22644 | H74: 0.005138339921 | I74: 26294 | J74: 0.8273456469
C75: 2022-11-01 | D75: 0 | E75: 0.08 | F75: 21678 | G75: 21754.22644 | H75: 0.005138339921 | I75: 26294 | J75: 0.8273456469
C76: 2022-12-01 | D76: 0 | E76: 0.08 | F76: 21678 | G76: 21754.22644 | H76: 0.005138339921 | I76: 26294 | J76: 0.8273456469
C77: 2023-01-01 | D77: 0 | E77: 0.08 | F77: 21678 | G77: 21781.33516 | H77: 0.005138339921 | I77: 27030 | J77: 0.8058207606
C78: 2023-02-01 | D78: 0 | E78: 0.08 | F78: 21678 | G78: 21781.33516 | H78: 0.005138339921 | I78: 27030 | J78: 0.8058207606
C79: 2023-03-01 | D79: 0 | E79: 0.08 | F79: 21678 | G79: 21781.33516 | H79: 0.005138339921 | I79: 27030 | J79: 0.8058207606
C80: 2023-04-01 | D80: 0 | E80: 0.08 | F80: 21678 | G80: 21781.33516 | H80: 0.005138339921 | I80: 27030 | J80: 0.8058207606
C81: 2023-05-01 | D81: 0 | E81: 0.08 | F81: 21678 | G81: 21781.33516 | H81: 0.005138339921 | I81: 27030 | J81: 0.8058207606
C82: 2023-06-01 | D82: 0 | E82: 0.08 | F82: 21678 | G82: 21781.33516 | H82: 0.005138339921 | I82: 27030 | J82: =G82/I82 -> 0.8058207606
C83: 2023-07-01 | D83: 0 | E83: 0.08 | F83: 21678 | G83: 21781.33516 | H83: 0.005138339921 | I83: 27030 | J83: 0.8058207606
C84: 2023-08-01 | D84: 0 | E84: 0.08 | F84: 21678 | G84: 21781.33516 | H84: 0.005138339921 | I84: 27030 | J84: 0.8058207606
C85: 2023-09-01 | D85: 0 | E85: 0.08 | F85: 21678 | G85: 21781.33516 | H85: 0.005138339921 | I85: 27030 | J85: 0.8058207606
C86: 2023-10-01 | D86: 0 | E86: 0.08 | F86: 21678 | G86: 21781.33516 | H86: 0.005138339921 | I86: 27030 | J86: 0.8058207606
C87: 2023-11-01 | D87: 0 | E87: 0.08 | F87: 21678 | G87: 21781.33516 | H87: 0.005138339921 | I87: 27030 | J87: 0.8058207606
C88: 2023-12-01 | D88: 0 | E88: 0.08 | F88: 21678 | G88: 21781.33516 | H88: 0.005138339921 | I88: 27030 | J88: 0.8058207606
C89: 2024-01-01 | D89: 0 | E89: 0.08 | F89: 21678 | G89: 21812.05557 | H89: 0.005138339921 | I89: 27760 | J89: 0.7857368721
C90: 2024-02-01 | D90: 0 | E90: 0.08 | F90: 21678 | G90: 21812.05557 | H90: 0.005138339921 | I90: 27760 | J90: 0.7857368721
C91: 2024-03-01 | D91: 0 | E91: 0.08 | F91: 21678 | G91: 21812.05557 | H91: 0.005138339921 | I91: 27760 | J91: 0.7857368721
C92: 2024-04-01 | D92: 0 | E92: 0.08 | F92: 21678 | G92: 21812.05557 | H92: 0.005138339921 | I92: 27760 | J92: 0.7857368721
C93: 2024-05-01 | D93: 0 | E93: 0.08 | F93: 21678 | G93: 21812.05557 | H93: 0.005138339921 | I93: 27760 | J93: 0.7857368721
C94: 2024-06-01 | D94: 0 | E94: 0.08 | F94: 21678 | G94: 21812.05557 | H94: 0.005138339921 | I94: 27760 | J94: 0.7857368721
C95: 2024-07-01 | D95: 0 | E95: 0.08 | F95: 21678 | G95: 21812.05557 | H95: 0.005138339921 | I95: 27760 | J95: 0.7857368721
C96: 2024-08-01 | D96: 0 | E96: 0.08 | F96: 21678 | G96: 21812.05557 | H96: 0.005138339921 | I96: 27760 | J96: 0.7857368721
C97: 2024-09-01 | D97: 0 | E97: 0.08 | F97: 21678 | G97: 21812.05557 | H97: 0.005138339921 | I97: 27760 | J97: 0.7857368721
C98: 2024-10-01 | D98: 0 | E98: 0.08 | F98: 21678 | G98: 21812.05557 | H98: 0.005138339921 | I98: 27760 | J98: 0.7857368721
C99: 2024-11-01 | D99: 0 | E99: 0.08 | F99: 21678 | G99: 21812.05557 | H99: 0.005138339921 | I99: 27760 | J99: 0.7857368721
C100: 2024-12-01 | D100: 0 | E100: 0.08 | F100: 21678 | G100: 21812.05557 | H100: 0.005138339921 | I100: 27760 | J100: 0.7857368721
C101: 2025-01-01 | D101: 0 | E101: 0.08 | F101: 21678 | G101: 21845.75252 | H101: 0.005138339921 | I101: 28370 | J101: 0.77003005
C102: 2025-02-01 | D102: 0 | E102: 0.08 | F102: 21678 | G102: 21845.75252 | H102: 0.005138339921 | I102: 28370 | J102: 0.77003005
C103: 2025-03-01 | D103: 0 | E103: 0.08 | F103: 21678 | G103: 21845.75252 | H103: 0.005138339921 | I103: 28370 | J103: 0.77003005
C104: 2025-04-01 | D104: 0 | E104: 0.08 | F104: 21678 | G104: 21845.75252 | H104: 0.005138339921 | I104: 28370 | J104: 0.77003005
C105: 2025-05-01 | D105: 0 | E105: 0.08 | F105: 21678 | G105: 21845.75252 | H105: 0.005138339921 | I105: 28370 | J105: 0.77003005
C106: 2025-06-01 | D106: 0 | E106: 0.08 | F106: 21678 | G106: 21845.75252 | H106: 0.005138339921 | I106: 28370 | J106: 0.77003005
C107: 2025-07-01 | D107: 0 | E107: 0.08 | F107: 21678 | G107: 21845.75252 | H107: 0.005138339921 | I107: 28370 | J107: 0.77003005
C108: 2025-08-01 | D108: 0 | E108: 0.08 | F108: 21678 | G108: 21845.75252 | H108: 0.005138339921 | I108: 28370 | J108: 0.77003005
C109: 2025-09-01 | D109: 0 | E109: 0.08 | F109: 21678 | G109: 21845.75252 | H109: 0.005138339921 | I109: 28370 | J109: 0.77003005
C110: 2025-10-01 | D110: 0 | E110: 0.08 | F110: 21678 | G110: 21845.75252 | H110: 0.005138339921 | I110: 28370 | J110: 0.77003005
C111: 2025-11-01 | D111: 0 | E111: 0.08 | F111: 21678 | G111: 21845.75252 | H111: 0.005138339921 | I111: 28370 | J111: 0.77003005
C112: 2025-12-01 | D112: 0 | E112: 0.08 | F112: 21678 | G112: 21845.75252 | H112: 0.005138339921 | I112: 28370 | J112: 0.77003005
C113: 2026-01-01 | D113: 0 | E113: 0.08 | F113: 21678 | G113: 21882.33877 | H113: 0.005138339921 | I113: 28966 | J113: 0.7554491048
C114: 2026-02-01 | D114: 0 | E114: 0.08 | F114: 21678 | G114: 21882.33877 | H114: 0.005138339921 | I114: 28966 | J114: 0.7554491048
C115: 2026-03-01 | D115: 0 | E115: 0.08 | F115: 21678 | G115: 21882.33877 | H115: 0.005138339921 | I115: 28966 | J115: 0.7554491048
C116: 2026-04-01 | D116: 0 | E116: 0.08 | F116: 21678 | G116: 21882.33877 | H116: 0.005138339921 | I116: 28966 | J116: 0.7554491048
C117: 2026-05-01 | D117: 0 | E117: 0.08 | F117: 21678 | G117: 21882.33877 | H117: 0.005138339921 | I117: 28966 | J117: 0.7554491048
C118: 2026-06-01 | D118: 0 | E118: 0.08 | F118: 21678 | G118: 21882.33877 | H118: 0.005138339921 | I118: 28966 | J118: 0.7554491048
C119: 2026-07-01 | D119: 0 | E119: 0.08 | F119: 21678 | G119: 21882.33877 | H119: 0.005138339921 | I119: 28966 | J119: 0.7554491048
C120: 2026-08-01 | D120: 0 | E120: 0.08 | F120: 21678 | G120: 21882.33877 | H120: 0.005138339921 | I120: 28966 | J120: 0.7554491048
C121: 2026-09-01 | D121: 0 | E121: 0.08 | F121: 21678 | G121: 21882.33877 | H121: 0.005138339921 | I121: 28966 | J121: 0.7554491048
C122: 2026-10-01 | D122: 0 | E122: 0.08 | F122: 21678 | G122: 21882.33877 | H122: 0.005138339921 | I122: 28966 | J122: 0.7554491048
C123: 2026-11-01 | D123: 0 | E123: 0.08 | F123: 21678 | G123: 21882.33877 | H123: 0.005138339921 | I123: 28966 | J123: 0.7554491048
C124: 2026-12-01 | D124: 0 | E124: 0.08 | F124: 21678 | G124: 21882.33877 | H124: 0.005138339921 | I124: 28966 | J124: 0.7554491048
C125: 2027-01-01 | D125: 0 | E125: 0.08 | F125: 21678 | G125: 21921.86114 | H125: 0.005138339921 | I125: 29574 | J125: 0.7412545188
C126: 2027-02-01 | D126: 0 | E126: 0.08 | F126: 21678 | G126: 21921.86114 | H126: 0.005138339921 | I126: 29574 | J126: 0.7412545188
C127: 2027-03-01 | D127: 0 | E127: 0.08 | F127: 21678 | G127: 21921.86114 | H127: 0.005138339921 | I127: 29574 | J127: 0.7412545188
C128: 2027-04-01 | D128: 0 | E128: 0.08 | F128: 21678 | G128: 21921.86114 | H128: 0.005138339921 | I128: 29574 | J128: 0.7412545188
C129: 2027-05-01 | D129: 0 | E129: 0.08 | F129: 21678 | G129: 21921.86114 | H129: 0.005138339921 | I129: 29574 | J129: 0.7412545188
C130: 2027-06-01 | D130: 0 | E130: 0.08 | F130: 21678 | G130: 21921.86114 | H130: 0.005138339921 | I130: 29574 | J130: 0.7412545188
C131: 2027-07-01 | D131: 0 | E131: 0.08 | F131: 21678 | G131: 21921.86114 | H131: 0.005138339921 | I131: 29574 | J131: 0.7412545188
C132: 2027-08-01 | D132: 0 | E132: 0.08 | F132: 21678 | G132: 21921.86114 | H132: 0.005138339921 | I132: 29574 | J132: 0.7412545188
C133: 2027-09-01 | D133: 0 | E133: 0.08 | F133: 21678 | G133: 21921.86114 | H133: 0.005138339921 | I133: 29574 | J133: 0.7412545188
C134: 2027-10-01 | D134: 0 | E134: 0.08 | F134: 21678 | G134: 21921.86114 | H134: =F$2 -> 0.005138339921 | I134: 29574 | J134: 0.7412545188
C135: 2027-11-01 | D135: 0 | E135: 0.08 | F135: 21678 | G135: =IF(I134=I135,G134,G134+(I135-G134)*F$2) -> 21921.86114 | H135: 0.005138339921 | I135: 29574 | J135: 0.7412545188
C136: 2027-12-01 | D136: 0 | E136: 0.08 | F136: 21678 | G136: 21921.86114 | H136: 0.005138339921 | I136: 29574 | J136: 0.7412545188
C137: 2028-01-01 | D137: 0 | E137: 0.08 | F137: 21678 | G137: 21964.37134 | H137: 0.005138339921 | I137: 30195 | J137: 0.7274174976
C138: 2028-02-01 | D138: 0 | E138: 0.08 | F138: 21678 | G138: 21964.37134 | H138: 0.005138339921 | I138: 30195 | J138: 0.7274174976
C139: 2028-03-01 | D139: 0 | E139: 0.08 | F139: 21678 | G139: 21964.37134 | H139: 0.005138339921 | I139: 30195 | J139: 0.7274174976
C140: 2028-04-01 | D140: 0 | E140: 0.08 | F140: 21678 | G140: 21964.37134 | H140: 0.005138339921 | I140: 30195 | J140: 0.7274174976
C141: 2028-05-01 | D141: 0 | E141: 0.08 | F141: 21678 | G141: 21964.37134 | H141: 0.005138339921 | I141: 30195 | J141: 0.7274174976
C142: 2028-06-01 | D142: 0 | E142: 0.08 | F142: 21678 | G142: 21964.37134 | H142: 0.005138339921 | I142: 30195 | J142: 0.7274174976
C143: 2028-07-01 | D143: 0 | E143: 0.08 | F143: 21678 | G143: 21964.37134 | H143: 0.005138339921 | I143: 30195 | J143: 0.7274174976
C144: 2028-08-01 | D144: 0 | E144: 0.08 | F144: 21678 | G144: 21964.37134 | H144: 0.005138339921 | I144: 30195 | J144: 0.7274174976
C145: 2028-09-01 | D145: 0 | E145: 0.08 | F145: 21678 | G145: 21964.37134 | H145: 0.005138339921 | I145: 30195 | J145: 0.7274174976
C146: 2028-10-01 | D146: 0 | E146: 0.08 | F146: 21678 | G146: 21964.37134 | H146: 0.005138339921 | I146: 30195 | J146: =G146/I146 -> 0.7274174976
C147: 2028-11-01 | D147: 0 | E147: 0.08 | F147: 21678 | G147: 21964.37134 | H147: 0.005138339921 | I147: 30195 | J147: 0.7274174976
C148: 2028-12-01 | D148: 0 | E148: 0.08 | F148: 21678 | G148: 21964.37134 | H148: 0.005138339921 | I148: 30195 | J148: 0.7274174976
C149: 2029-01-01 | D149: 0 | E149: 0.08 | F149: 21678 | G149: 22009.76666 | H149: 0.005138339921 | I149: 30799 | J149: 0.7146260159
C150: 2029-02-01 | D150: 0 | E150: 0.08 | F150: 21678 | G150: 22009.76666 | H150: 0.005138339921 | I150: 30799 | J150: 0.7146260159
C151: 2029-03-01 | D151: 0 | E151: 0.08 | F151: 21678 | G151: 22009.76666 | H151: 0.005138339921 | I151: 30799 | J151: 0.7146260159
C152: 2029-04-01 | D152: 0 | E152: 0.08 | F152: 21678 | G152: 22009.76666 | H152: 0.005138339921 | I152: 30799 | J152: 0.7146260159
C153: 2029-05-01 | D153: 0 | E153: 0.08 | F153: 21678 | G153: 22009.76666 | H153: 0.005138339921 | I153: 30799 | J153: 0.7146260159
C154: 2029-06-01 | D154: 0 | E154: 0.08 | F154: 21678 | G154: 22009.76666 | H154: 0.005138339921 | I154: 30799 | J154: 0.7146260159
C155: 2029-07-01 | D155: 0 | E155: 0.08 | F155: 21678 | G155: 22009.76666 | H155: 0.005138339921 | I155: 30799 | J155: 0.7146260159
C156: 2029-08-01 | D156: 0 | E156: 0.08 | F156: 21678 | G156: 22009.76666 | H156: 0.005138339921 | I156: 30799 | J156: 0.7146260159
C157: 2029-09-01 | D157: 0 | E157: 0.08 | F157: 21678 | G157: 22009.76666 | H157: 0.005138339921 | I157: 30799 | J157: 0.7146260159
C158: 2029-10-01 | D158: 0 | E158: 0.08 | F158: 21678 | G158: 22009.76666 | H158: 0.005138339921 | I158: 30799 | J158: 0.7146260159
C159: 2029-11-01 | D159: 0 | E159: 0.08 | F159: 21678 | G159: 22009.76666 | H159: 0.005138339921 | I159: 30799 | J159: 0.7146260159
C160: 2029-12-01 | D160: 0 | E160: 0.08 | F160: 21678 | G160: 22009.76666 | H160: 0.005138339921 | I160: 30799 | J160: 0.7146260159
C161: 2030-01-01 | D161: 0 | E161: 0.08 | F161: 21678 | G161: 22057.9398 | H161: 0.005138339921 | I161: 31385 | J161: 0.7028179003
C162: 2030-02-01 | D162: 0 | E162: 0.08 | F162: 21678 | G162: 22057.9398 | H162: 0.005138339921 | I162: 31385 | J162: 0.7028179003
C163: 2030-03-01 | D163: 0 | E163: 0.08 | F163: 21678 | G163: 22057.9398 | H163: 0.005138339921 | I163: 31385 | J163: 0.7028179003
C164: 2030-04-01 | D164: 0 | E164: 0.08 | F164: 21678 | G164: 22057.9398 | H164: 0.005138339921 | I164: 31385 | J164: 0.7028179003
C165: 2030-05-01 | D165: 0 | E165: 0.08 | F165: 21678 | G165: 22057.9398 | H165: 0.005138339921 | I165: 31385 | J165: 0.7028179003
C166: 2030-06-01 | D166: 0 | E166: 0.08 | F166: 21678 | G166: 22057.9398 | H166: 0.005138339921 | I166: 31385 | J166: 0.7028179003
C167: 2030-07-01 | D167: 0 | E167: 0.08 | F167: 21678 | G167: 22057.9398 | H167: 0.005138339921 | I167: 31385 | J167: 0.7028179003
C168: 2030-08-01 | D168: 0 | E168: 0.08 | F168: 21678 | G168: 22057.9398 | H168: 0.005138339921 | I168: 31385 | J168: 0.7028179003
C169: 2030-09-01 | D169: 0 | E169: 0.08 | F169: 21678 | G169: 22057.9398 | H169: 0.005138339921 | I169: 31385 | J169: 0.7028179003
C170: 2030-10-01 | D170: 0 | E170: 0.08 | F170: 21678 | G170: 22057.9398 | H170: 0.005138339921 | I170: 31385 | J170: 0.7028179003
C171: 2030-11-01 | D171: 0 | E171: 0.08 | F171: 21678 | G171: 22057.9398 | H171: 0.005138339921 | I171: 31385 | J171: 0.7028179003
C172: 2030-12-01 | D172: 0 | E172: 0.08 | F172: 21678 | G172: 22057.9398 | H172: 0.005138339921 | I172: 31385 | J172: 0.7028179003
C173: 2031-01-01 | D173: 0 | E173: 0.08 | F173: 21678 | G173: 22109.08715 | H173: 0.005138339921 | I173: 32012 | J173: 0.6906499796
C174: 2031-02-01 | D174: 0 | E174: 0.08 | F174: 21678 | G174: 22109.08715 | H174: 0.005138339921 | I174: 32012 | J174: 0.6906499796
C175: 2031-03-01 | D175: 0 | E175: 0.08 | F175: 21678 | G175: 22109.08715 | H175: 0.005138339921 | I175: 32012 | J175: 0.6906499796
C176: 2031-04-01 | D176: 0 | E176: 0.08 | F176: 21678 | G176: 22109.08715 | H176: 0.005138339921 | I176: 32012 | J176: 0.6906499796
C177: 2031-05-01 | D177: 0 | E177: 0.08 | F177: 21678 | G177: 22109.08715 | H177: 0.005138339921 | I177: 32012 | J177: 0.6906499796
C178: 2031-06-01 | D178: 0 | E178: 0.08 | F178: 21678 | G178: 22109.08715 | H178: 0.005138339921 | I178: 32012 | J178: 0.6906499796
C179: 2031-07-01 | D179: 0 | E179: 0.08 | F179: 21678 | G179: 22109.08715 | H179: 0.005138339921 | I179: 32012 | J179: 0.6906499796
C180: 2031-08-01 | D180: 0 | E180: 0.08 | F180: 21678 | G180: 22109.08715 | H180: 0.005138339921 | I180: 32012 | J180: 0.6906499796
C181: 2031-09-01 | D181: 0 | E181: 0.08 | F181: 21678 | G181: 22109.08715 | H181: 0.005138339921 | I181: 32012 | J181: 0.6906499796
C182: 2031-10-01 | D182: 0 | E182: 0.08 | F182: 21678 | G182: 22109.08715 | H182: 0.005138339921 | I182: 32012 | J182: 0.6906499796
C183: 2031-11-01 | D183: 0 | E183: 0.08 | F183: 21678 | G183: 22109.08715 | H183: 0.005138339921 | I183: 32012 | J183: 0.6906499796
C184: 2031-12-01 | D184: 0 | E184: 0.08 | F184: 21678 | G184: 22109.08715 | H184: 0.005138339921 | I184: 32012 | J184: 0.6906499796
C185: 2032-01-01 | D185: 0 | E185: 0.08 | F185: 21678 | G185: 22163.26022 | H185: 0.005138339921 | I185: 32652 | J185: 0.6787719042
C186: 2032-02-01 | D186: 0 | E186: 0.08 | F186: 21678 | G186: 22163.26022 | H186: 0.005138339921 | I186: 32652 | J186: 0.6787719042
C187: 2032-03-01 | D187: 0 | E187: 0.08 | F187: 21678 | G187: 22163.26022 | H187: 0.005138339921 | I187: 32652 | J187: 0.6787719042
C188: 2032-04-01 | D188: 0 | E188: 0.08 | F188: 21678 | G188: 22163.26022 | H188: 0.005138339921 | I188: 32652 | J188: 0.6787719042
C189: 2032-05-01 | D189: 0 | E189: 0.08 | F189: 21678 | G189: 22163.26022 | H189: 0.005138339921 | I189: 32652 | J189: 0.6787719042
C190: 2032-06-01 | D190: 0 | E190: 0.08 | F190: 21678 | G190: 22163.26022 | H190: 0.005138339921 | I190: 32652 | J190: 0.6787719042
C191: 2032-07-01 | D191: 0 | E191: 0.08 | F191: 21678 | G191: 22163.26022 | H191: 0.005138339921 | I191: 32652 | J191: 0.6787719042
C192: 2032-08-01 | D192: 0 | E192: 0.08 | F192: 21678 | G192: 22163.26022 | H192: 0.005138339921 | I192: 32652 | J192: 0.6787719042
C193: 2032-09-01 | D193: 0 | E193: 0.08 | F193: 21678 | G193: 22163.26022 | H193: 0.005138339921 | I193: 32652 | J193: 0.6787719042
C194: 2032-10-01 | D194: 0 | E194: 0.08 | F194: 21678 | G194: 22163.26022 | H194: 0.005138339921 | I194: 32652 | J194: 0.6787719042
C195: 2032-11-01 | D195: 0 | E195: 0.08 | F195: 21678 | G195: 22163.26022 | H195: 0.005138339921 | I195: 32652 | J195: 0.6787719042
C196: 2032-12-01 | D196: 0 | E196: 0.08 | F196: 21678 | G196: 22163.26022 | H196: 0.005138339921 | I196: 32652 | J196: 0.6787719042
C197: 2033-01-01 | D197: 0 | E197: 0.08 | F197: 21678 | G197: 22220.5154 | H197: 0.005138339921 | I197: 33306 | J197: 0.6671625353
C198: 2033-02-01 | D198: 0 | E198: 0.08 | F198: 21678 | G198: 22220.5154 | H198: =F$2 -> 0.005138339921 | I198: 33306 | J198: 0.6671625353
C199: 2033-03-01 | D199: 0 | E199: 0.08 | F199: 21678 | G199: =IF(I198=I199,G198,G198+(I199-G198)*F$2) -> 22220.5154 | H199: 0.005138339921 | I199: 33306 | J199: 0.6671625353
C200: 2033-04-01 | D200: 0 | E200: 0.08 | F200: 21678 | G200: 22220.5154 | H200: 0.005138339921 | I200: 33306 | J200: 0.6671625353
... 56 more rows
